Cogmind - Beta 17.1 @@@ ROGUE MODE // 2026.09.02 @ 13:37:30 Player: Tuuli Result: Destroyed by ZL-UGY(M) with Heavy Riot Gun Performance ------------- Evolutions (3) 1500 Regions Visited (10) 2000 Robots Destroyed (109) 545 Value Destroyed (3155) 3155 Prototype IDs (33) 660 Alien Tech Used (0) 0 Bonus (600) 600 TOTAL SCORE: 8460 Bonus ------- Aligned with FarCom 300 Met Imprinter 300 Cogmind --------- Core Integrity 0/700 Matter 169/300 Energy 48/100 System Corruption 16% Temperature Hot (251) Movement Core (700) Ox13 Location -6/Zion Parts ------- > --- POWER (1) -------- (None) > --- PROPULSION (6) --- (None) > --- UTILITY (4) ------ Large Storage Unit Kinecellerator Improved Medium Armor Plating Improved Medium Armor Plating > --- WEAPON (2) ------- Heavy Laser > --- INVENTORY (15) --- Nuclear Core Light Nuclear Core Improved Cooling System Large Matter Pod (150) Heavy Laser Flamer Flamer Heavy Mace Peak State ------------ > --- POWER ------------ Light Nuclear Core > --- PROPULSION ------- Advanced Treads Advanced Treads Advanced Treads Advanced Treads Aluminum Leg Carbon-fiber Leg > --- UTILITY ---------- Large Storage Unit Armor Integrity Analyzer Layered Light Armor Plating Hacking Drone Bay > --- WEAPON ----------- Gauss Rifle Gauss Rifle > --- INVENTORY -------- Light Deuterium Engine Nuclear Core Light Nuclear Core Improved Carbon-fiber Leg Makeshift Leg Large Matter Pod Kinecellerator Improved Medium Armor Plating Improved Medium Armor Plating Improved Medium Armor Plating Thief Drone Bay Heavy Laser Heavy Laser High-powered Shotgun Heavy Mace [Rating: 50] Favorites ----------- Power Ion Engine Engine Ion Engine Power Core Light Nuclear Core Propulsion Light Treads Treads Light Treads Leg Carbon-fiber Leg Utility Large Storage Unit Device Seismic Detector Storage Large Storage Unit Processor Armor Integrity Analyzer Protection Hardened Medium Armor Plating Weapon Gauss Rifle Energy Gun Improved EM Shotgun Energy Cannon Particle Cannon Ballistic Gun Gauss Rifle Impact Weapon Impact Mace Build | -11 -10 -10 -9 -9 -9 -8 -8 -7 -7 -6 ------- Run | Yrd Mat Min Mat Min Exi Min Mat Fac Low Zio Slots Evolved 6 | . . . 2 . . . 2 2 . . Power . | . . . . . . . . . . . Propulsion 4 | . . . 2 . . . . 2 . . Utility 2 | . . . . . . . 2 . . . Weapon . | . . . . . . . . . . . Parts Attached 87 | 8 4 . 11 . 1 4 8 39 1 11 Power 11 | 2 1 . . . . . 1 5 1 1 Engine 5 | 2 1 . . . . . . 1 . 1 Core 6 | . . . . . . . 1 4 1 . Reactor . | . . . . . . . . . . . Propulsion 29 | 2 . . 5 . . 1 1 18 . 2 Treads 24 | 2 . . 5 . . 1 1 15 . . Leg 5 | . . . . . . . . 3 . 2 Wheel . | . . . . . . . . . . . Hover . | . . . . . . . . . . . Flight . | . . . . . . . . . . . Utility 26 | 2 1 . 2 . . 3 3 9 . 6 Device 7 | 1 . . . . . 1 . 2 . 3 Storage 5 | 1 1 . . . . 1 1 1 . . Processor 1 | . . . . . . . . 1 . . Hackware . | . . . . . . . . . . . Protection 13 | . . . 2 . . 1 2 5 . 3 Artifact . | . . . . . . . . . . . Weapon 21 | 2 2 . 4 . 1 . 3 7 . 2 Energy Gun 10 | 2 . . 3 . . . 2 2 . 1 Energy Cannon 3 | . 2 . 1 . . . . . . . Ballistic Gun 7 | . . . . . 1 . 1 4 . 1 Ballistic Cannon . | . . . . . . . . . . . Launcher . | . . . . . . . . . . . Special Weapon . | . . . . . . . . . . . Impact Weapon 1 | . . . . . . . . 1 . . Slashing Weapon . | . . . . . . . . . . . Piercing Weapon . | . . . . . . . . . . . Special Melee Weapon . | . . . . . . . . . . . Unidentified Prototypes 10 | . 1 . 2 . . 1 1 3 . 2 Parts Lost 55 | . . . 5 . . 2 . 31 1 16 Power 7 | . . . . . . . . 5 . 2 Propulsion 26 | . . . 3 . . 1 . 13 1 8 Utility 12 | . . . 1 . . 1 . 7 . 3 Weapon 10 | . . . 1 . . . . 6 . 3 Highest Loss Streak 19 | . . . 4 . . 1 . 19 1 16 To Critical Strikes 1 | . . . . . . . . 1 . . Average Backups 12 | 3 5 10 11 13 14 14 13 13 15 14 Power 2 | . 1 2 2 2 2 2 3 3 3 2 Propulsion 2 | 1 2 4 3 3 3 3 4 2 2 1 Utility 3 | . . 2 2 3 4 2 1 4 6 5 Weapon 3 | 1 1 2 3 5 5 6 4 3 4 4 Tool/Special . | . . . . . . . . . . . Unused Backups 20 | . 3 . 1 . . 2 5 1 . 8 Power 3 | . . . . . . 1 . . . 2 Propulsion 3 | . 2 . . . . . 1 . . . Utility 3 | . . . . . . . . 1 . 2 Weapon 11 | . 1 . 1 . . 1 4 . . 4 Tool/Special . | . . . . . . . . . . . Average Slot Usage (%) 91 | . 99 100 99 100 94 84 76 88 97 91 Engine 6 | . 13 14 11 11 11 11 3 1 5 . Core 3 | . . . . . . . 5 4 1 6 Treads 35 | . 28 28 43 44 44 44 36 36 35 29 Leg 4 | . . . . . . . . 3 7 14 Device 2 | . 14 14 . . . . . 1 . . Storage 9 | . 14 14 11 11 11 11 9 7 7 7 Processor 2 | . . . . . . . . 1 7 6 Protection 10 | . . . 10 11 11 7 12 17 15 8 Energy Gun 5 | . 12 . 18 22 12 . 2 4 . . Energy Cannon 3 | . 15 28 3 . . . . . . . Ballistic Gun 7 | . . . . . 4 11 7 7 15 14 Peak Build Rating 50 | 7 10 11 16 17 27 34 37 46 46 50 Average Rating 28 | 4 8 10 14 16 21 27 30 37 45 41 On Entrance 22 | . 7 10 11 16 17 27 28 37 46 43 Avg Prop Armor Cover (%) 5 | . . . . . . . . 3 3 6 Naked Turns . | . . . . . . . . . . . Heaviest Build 77 | 14 34 34 36 34 38 43 67 77 43 43 Greatest Support 120 | 40 40 40 80 80 80 80 80 120 108 88 Greatest Overweight (x) 17 | . . . . . . . . 17 . . Average Overweight (x) . | . . . . . . . . . . . Largest Inventory Capacity 20 | 8 15 15 15 15 15 15 20 20 15 15 Average Capacity 15 | 7 11 15 15 15 15 15 15 18 15 15 Most Carried 20 | 5 10 12 13 14 15 15 15 20 15 15 Average Carried 13 | 3 6 10 11 13 14 14 14 14 14 14 Final Capacity 20 | 8 15 15 15 15 15 15 20 15 15 15 Final Carried 15 | 4 10 12 13 14 15 13 15 15 15 8 Class Distribution -------------------- 75% | Scavenger-Mutant 24% | Mutant Dominant Class ---------------- Mutant | -10/Materials Mutant | -10/Mines Mutant | -9/Materials Scavenger-Mutant | -9/Mines Scavenger-Mutant | -9/Exiles Scavenger-Mutant | -8/Mines Scavenger-Mutant | -8/Materials Scavenger-Mutant | -7/Factory Scavenger-Mutant | -7/Lower Caves Scavenger-Mutant | -6/Zion Resources | -11 -10 -10 -9 -9 -9 -8 -8 -7 -7 -6 ----------- Run | Yrd Mat Min Mat Min Exi Min Mat Fac Low Zio Matter Collected 1750 | 257 82 5 105 . . 45 40 1042 91 83 Remotely . | . . . . . . . . . . . Salvage Created 4155 | 26 426 21 837 . . 326 625 1747 73 74 Parts 246 | 7 22 4 55 . . 12 40 98 5 3 Haulers Intercepted 10 | . 2 . 2 . . . 2 4 . . Recyclers Shooed 7 | 1 1 1 2 . . . . 2 . . Parts Field Recycled . | . . . . . . . . . . . Retrieved Matter . | . . . . . . . . . . . Parts Self-Destructed 6 | . . . . . . . . . 4 2 Prevented . | . . . . . . . . . . . Parts Restored . | . . . . . . . . . . . Kills | -11 -10 -10 -9 -9 -9 -8 -8 -7 -7 -6 ------- Run | Yrd Mat Min Mat Min Exi Min Mat Fac Low Zio Combat Hostiles Destroyed 74 | . 6 3 16 . . 6 8 30 3 2 Guns 61 | . 4 . 9 . . 6 8 29 3 2 Cannons 3 | . 2 . 1 . . . . . . . AOE 9 | . . 3 5 . . . . 1 . . Classes Destroyed 15 | 1 4 2 5 . . . 1 2 . . Worker 3 | . . . 1 . . . 1 1 . . Builder 5 | . . 1 1 . . . 1 2 . . Tunneler 2 | 2 . . . . . . . . . . Hauler 10 | . 2 . 2 . . . 2 4 . . Recycler 5 | . . . 1 . . . 1 3 . . Mechanic 1 | . 1 . . . . . . . . . Operator 2 | . . . 1 . . . 1 . . . Watcher 7 | . 1 . 1 . . . 4 1 . . Swarmer 26 | . . 3 7 . . . 3 10 3 . Grunt 29 | . 6 . 4 . . 6 4 9 . . Duelist 1 | . . . 1 . . . . . . . Sentry 5 | . . . 4 . . . . 1 . . Specialist 2 | . . . . . . . . 2 . . Hunter 5 | . . . . . . . 1 4 . . Programmer 4 | . . . . . . . . 4 . . Wasp 1 | . . . . . . . . . . 1 Butcher 1 | . . . . . . . . . . 1 Best Kill Streak 7 | 2 2 3 7 . . 3 3 5 3 2 Combat Bots Only 6 | . 2 3 6 . . 3 3 4 3 2 Max Kills in Single Turn 3 | 1 1 3 3 . . 1 2 2 1 1 Gunslinging . | . . . . . . . . . . . Exploded 3 | . . 3 3 . . . . 1 . . Melee . | . . . . . . . . . . . Uniques/NPCs Destroyed . | . . . . . . . . . . . Combat | -11 -10 -10 -9 -9 -9 -8 -8 -7 -7 -6 -------- Run | Yrd Mat Min Mat Min Exi Min Mat Fac Low Zio Hostile Shots Fired 857 | . 27 2 71 . . 16 23 496 19 203 Missed 233 | . 6 . 20 . . 5 5 145 3 49 Hits 624 | . 21 2 51 . . 11 18 351 16 154 Melee 7 | . . . 2 . . . . 1 . 4 Projectile 617 | . 21 2 49 . . 11 18 350 16 150 Critical Strikes 19 | . 1 . 2 . . . . 10 . 6 Part Disruptions 1 | . . . . . . . . . . 1 Damage Taken 9069 | . 266 76 818 . . 188 241 5080 256 2144 Core 847 | . 24 40 36 . . 18 26 487 17 199 Absorbed by Shields . | . . . . . . . . . . . Redirected to Shielding 163 | . . . . . . . . 142 21 . Regen/Repaired (Parts) 72 | . . . . . . . . 72 . . Core Remaining (%) 88 | 100 . 74 . . . 86 95 . . . Volleys Fired 197 | 5 25 1 33 . . . 6 88 8 31 Largest 2 | 2 2 2 2 . . . 2 2 2 2 Hottest 138 | 90 136 136 136 . . . 132 138 56 94 Shots Fired 477 | 10 50 2 65 . . 22 58 205 15 50 Gun 451 | 10 34 . 57 . . 22 58 205 15 50 Cannon 26 | . 16 2 8 . . . . . . . Launcher . | . . . . . . . . . . . Special . | . . . . . . . . . . . Kinetic 234 | . . . . . . 22 46 113 15 38 Thermal 190 | 10 50 2 12 . . . 12 92 . 12 Explosive . | . . . . . . . . . . . Electromagnetic 53 | . . . 53 . . . . . . . Robot Hit Streak 16 | 4 10 6 15 . . 11 9 16 4 9 Robot Miss Streak 5 | 1 3 1 5 . . 1 2 5 2 5 Penetration Max 1 | . . . . . . . . 1 . . Secondary Targets 8 | . . . 3 . . . . 4 . 1 Max Gunslinging Chain 1 | . . . 1 . . . . 1 . 1 Autonomous 100 | . . . . . . 22 46 32 . . Shots Hit Robots 331 | 7 36 1 53 . . 20 38 141 8 27 Core Hits 184 | 2 18 4 36 . . 10 20 81 3 10 Critical Kills 1 | . . . . . . 1 . . . . Critical Parts Destroyed . | . . . . . . . . . . . Critical Strikes 5 | . . . . . . 1 . 4 . . Burn 4 | . . . . . . . . 4 . . Destroy 1 | . . . . . . 1 . . . . Melee Attacks . | . . . . . . . . . . . Impact . | . . . . . . . . . . . Slashing . | . . . . . . . . . . . Piercing . | . . . . . . . . . . . Sneak Attacks . | . . . . . . . . . . . Combat Hostiles . | . . . . . . . . . . . Follow-up Attacks . | . . . . . . . . . . . Damage Inflicted 8551 | 83 514 225 1390 8 . 594 1171 3638 169 759 Guns 7347 | 83 290 . 769 . . 594 1171 3512 169 759 Cannons 367 | . 224 20 123 . . . . . . . Explosions 781 | . . 179 498 . . . . 104 . . Melee . | . . . . . . . . . . . Ramming 56 | . . 26 . 8 . . . 22 . . Kinetic 4094 | . . . . . . 594 992 1774 169 565 Thermal 3589 | 83 514 199 675 . . . 179 1745 . 194 Explosive . | . . . . . . . . . . . Electromagnetic 812 | . . . 715 . . . . 97 . . Impact . | . . . . . . . . . . . Slashing . | . . . . . . . . . . . Piercing . | . . . . . . . . . . . Highest Corruption 16 | . 4 4 . . . . . 6 6 16 Average Corruption 5 | . 4 4 . . . . . 5 6 7 Corruption Purged . | . . . . . . . . . . . Corruption Blocked . | . . . . . . . . . . . Effects 47 | . 6 9 . . . . . 19 9 4 Message Errors 15 | . 4 3 . . . . . 4 4 . Matter Fused 7 | . 1 1 . . . . . 4 . 1 Heat Flow Errors 4 | . . 1 . . . . . 2 1 . Energy Discharges 8 | . . 2 . . . . . 4 2 . Parts Fused 1 | . . 1 . . . . . . . . Data Loss (minor) 8 | . 1 1 . . . . . 4 . 2 Data Loss (major) 1 | . . . . . . . . . 1 . Misfires 1 | . . . . . . . . 1 . . Weapon Failures 2 | . . . . . . . . . 1 1 Overload Shots 20 | . . . . . . . . 20 . . Effects 1 | . . . . . . . . 1 . . Short Circuit 1 | . . . . . . . . 1 . . Overflow Damage 13 | . . 12 1 . . . . . . . Projectiles . | . . . . . . . . . . . Explosions 13 | . . 12 1 . . . . . . . Melee . | . . . . . . . . . . . Knockbacks 1 | . . . . 1 . . . . . . Impact 1 | . . . . 1 . . . . . . Kinetic . | . . . . . . . . . . . Secondary . | . . . . . . . . . . . Self-Inflicted Damage 253 | . . 62 191 . . . . . . . Shots 8 | . . 2 6 . . . . . . . Rammed 9 | . . 4 . 2 . . . 3 . . Targets Rammed 11 | . . 5 . 2 . . . 4 . . Kicked 1 | . . . . . . . . 1 . . Crushed 1 | . . 1 . . . . . . . . Highest Temperature 536 | 90 252 214 235 . . . 300 536 209 273 Average Temperature 120 | 41 98 88 64 . . . 128 170 105 84 Received Heat Transfer 1940 | . 168 . 183 . . 99 18 984 . 488 Effects 22 | . . . 1 . . . . 21 . . Shutdowns 7 | . . . . . . . . 7 . . Energy Bleed 4 | . . . . . . . . 4 . . Interference 1 | . . . 1 . . . . . . . Matter Decay 2 | . . . . . . . . 2 . . Short Circuit 3 | . . . . . . . . 3 . . Damage (minor) 2 | . . . . . . . . 2 . . Damage (major) 3 | . . . . . . . . 3 . . Siege Activations . | . . . . . . . . . . . Martial Activations . | . . . . . . . . . . . Shielding Activations . | . . . . . . . . . . . Robots Disrupted . | . . . . . . . . . . . Combat Hostiles . | . . . . . . . . . . . Robots Corrupted 1 | . . . 1 . . . . . . . Combat Hostiles 1 | . . . 1 . . . . . . . Parts Fried 3 | . . . 3 . . . . . . . Impact Corruptions . | . . . . . . . . . . . Robots Melted . | . . . . . . . . . . . Combat Hostiles . | . . . . . . . . . . . Parts Melted 8 | 1 2 . . . . . 1 4 . . Heat Transferred 6480 | 223 1176 287 933 . . . 370 3121 . 370 Parts Sabotaged . | . . . . . . . . . . . Parts Stolen . | . . . . . . . . . . . Parts Stripped . | . . . . . . . . . . . Power Chain Reactions 8 | . . . 7 . . . . 1 . . Alert | -11 -10 -10 -9 -9 -9 -8 -8 -7 -7 -6 ------- Run | Yrd Mat Min Mat Min Exi Min Mat Fac Low Zio Maximum Alert Level 1 | . . . 1 . . . . . . . Low Security (%) 96 | 100 100 100 66 100 . 100 100 100 . . Level 1 3 | . . . 33 . . . . . . . Level 2 . | . . . . . . . . . . . Level 3 . | . . . . . . . . . . . Level 4 . | . . . . . . . . . . . Level 5 . | . . . . . . . . . . . High Security . | . . . . . . . . . . . Max Security . | . . . . . . . . . . . Peak Influence 254 | 10 70 119 254 83 . 75 137 135 . . Initial 83 | . . 10 . 83 . . 14 49 . . Average 51 | . 14 36 121 14 . 9 87 65 . . Influence Increases 2286 | 10 191 114 519 . . 149 335 898 70 . Destroy 0b10 Robot/C 1440 | . 120 60 320 . . 120 160 600 60 . Destroy 0b10 Robot/NC 175 | 10 20 5 35 . . . 50 55 . . Destroy Leader 298 | . 36 10 86 . . 20 42 94 10 . Successful Hack 30 | . 14 . . . . . . 16 . . Disable Machine 180 | . . 30 60 . . . 45 45 . . Destroy Structure 88 | . 1 9 18 . . 9 23 28 . . Lose Combat Pursuer 75 | . . . . . . . 15 60 . . Influence Decreases 2286 | 10 164 141 305 214 . 110 265 941 116 20 Entered New Map 278 | . . 17 . 131 . . 25 60 25 20 Time Decay 1620 | 10 164 124 248 83 . 99 240 571 81 . Lost Part 381 | . . . 50 . . 11 . 310 10 . Lost Ally 7 | . . . 7 . . . . . . . Squads Dispatched 10 | . 1 . 1 . . . 1 7 . . Investigation 2 | . . . . . . . 1 1 . . Extermination 3 | . . . . . . . . 3 . . Reinforcement 5 | . 1 . 1 . . . . 3 . . Assault . | . . . . . . . . . . . Garrison . | . . . . . . . . . . . Intercept . | . . . . . . . . . . . Searches Triggered . | . . . . . . . . . . . Construction Impeded 1 | . . . 1 . . . . . . . Haulers Reinforced . | . . . . . . . . . . . Active Scanning Responses . | . . . . . . . . . . . Cargo Convoy Interrupts 1 | . . . . . . . . 1 . . Stealth | -11 -10 -10 -9 -9 -9 -8 -8 -7 -7 -6 --------- Run | Yrd Mat Min Mat Min Exi Min Mat Fac Low Zio Distress Signals 7 | . 2 . 3 . . . . 2 . . Communications Jammed . | . . . . . . . . . . . Distress Signals . | . . . . . . . . . . . Times Spotted 123 | . 14 3 19 1 . 6 12 55 3 10 Peak Tracking Total 12 | . 4 3 5 2 . 3 3 12 3 12 Tactical Retreats 7 | . . . . . . . 1 4 . 2 Traps | -11 -10 -10 -9 -9 -9 -8 -8 -7 -7 -6 ------- Run | Yrd Mat Min Mat Min Exi Min Mat Fac Low Zio Traps Triggered 1 | . . . . . . . . 1 . . Indirectly . | . . . . . . . . . . . Trap Hack Attempts . | . . . . . . . . . . . Triggered . | . . . . . . . . . . . Disarmed . | . . . . . . . . . . . Reprogrammed . | . . . . . . . . . . . Reused . | . . . . . . . . . . . Traps Extracted . | . . . . . . . . . . . Installed . | . . . . . . . . . . . Triggered . | . . . . . . . . . . . Machines | -11 -10 -10 -9 -9 -9 -8 -8 -7 -7 -6 ---------- Run | Yrd Mat Min Mat Min Exi Min Mat Fac Low Zio Machines Disabled 12 | . . 2 4 . . . 3 3 . . Max in Single Turn 2 | . . 2 2 . . . 1 1 . . Machines Repaired . | . . . . . . . . . . . Machines Dismantled . | . . . . . . . . . . . Machines Sabotaged . | . . . . . . . . . . . Overloaded Fab Kills . | . . . . . . . . . . . Hacking | -11 -10 -10 -9 -9 -9 -8 -8 -7 -7 -6 --------- Run | Yrd Mat Min Mat Min Exi Min Mat Fac Low Zio Machines Accessed 16 | . 2 1 2 . 2 . 6 3 . . Terminals 8 | . 2 . 1 . . . 4 1 . . Fabricators . | . . . . . . . . . . . Repair Stations 1 | . . . . . . . . 1 . . Recycling Units 1 | . . . 1 . . . . . . . Scanalyzers 2 | . . . . . . . 1 1 . . Garrison Access 1 | . . . . . . . 1 . . . Total Hacks 58 | . 4 1 4 . 24 . 16 9 . . Successful 38 | . 2 1 3 . 24 . 2 6 . . Failed 20 | . 2 . 1 . . . 14 3 . . Catastrophic 8 | . . . . . . . 7 1 . . Database Lockouts . | . . . . . . . . . . . Manual 22 | . 4 . 2 . 1 . 13 2 . . Terminals 20 | . 4 . 2 . . . 11 3 . . Fabricators . | . . . . . . . . . . . Repair Stations 4 | . . . . . . . . 4 . . Recycling Units 2 | . . . 2 . . . . . . . Scanalyzers 5 | . . . . . . . 3 2 . . Garrison Access 2 | . . . . . . . 2 . . . Terminal Hacks 29 | . 1 1 1 . 24 . . 2 . . Record 24 | . . . . . 23 . . 1 . . Open Door 1 | . . 1 . . . . . . . . Branch Access Points 3 | . 1 . 1 . . . . 1 . . Proto ID Catalog 1 | . . . . . 1 . . . . . Fabricator Hacks . | . . . . . . . . . . . Repair Station Hacks 4 | . . . . . . . . 4 . . Scan Component 2 | . . . . . . . . 2 . . Repair 2 | . . . . . . . . 2 . . Recycling Unit Hacks 2 | . . . 2 . . . . . . . Report Inventory 1 | . . . 1 . . . . . . . Retrieve Matter 1 | . . . 1 . . . . . . . Scanalyzer 2 | . . . . . . . 2 . . . Insert Component 1 | . . . . . . . 1 . . . Analyze 1 | . . . . . . . 1 . . . Garrison Access Hacks . | . . . . . . . . . . . Unauthorized Hacks 1 | . 1 . . . . . . . . . Terminals 1 | . 1 . . . . . . . . . Assimilate 1 | . 1 . . . . . . . . . Fabricators . | . . . . . . . . . . . Repair Stations . | . . . . . . . . . . . Recycling Units . | . . . . . . . . . . . Scanalyzers . | . . . . . . . . . . . Garrison Access . | . . . . . . . . . . . Data Cores Recovered 1 | . . . . . . . 1 . . . Used . | . . . . . . . . . . . Hacking Detections 9 | . 1 . 1 . . . 5 2 . . Full Trace Events 5 | . . . . . . . 4 1 . . Feedback Events . | . . . . . . . . . . . Feedback Blocked . | . . . . . . . . . . . Robot Schematics Acquired . | . . . . . . . . . . . Robots Built . | . . . . . . . . . . . Authchips . | . . . . . . . . . . . Time . | . . . . . . . . . . . Total Robot Build Rating . | . . . . . . . . . . . Part Schematics Acquired 1 | . . . . . . . 1 . . . Parts Built . | . . . . . . . . . . . Authchips . | . . . . . . . . . . . Time . | . . . . . . . . . . . Total Part Build Rating . | . . . . . . . . . . . Part Studies Acquired . | . . . . . . . . . . . Parts Repaired 2 | . . . . . . . . 2 . . Time 76 | . . . . . . . . 76 . . Parts Recycled . | . . . . . . . . . . . Recycled Matter . | . . . . . . . . . . . Retrieved Matter . | . . . . . . . . . . . Retrieved Components . | . . . . . . . . . . . Parts Scanalyzed 1 | . . . . . . . 1 . . . Part Schematics Acquired 1 | . . . . . . . 1 . . . Parts Damaged . | . . . . . . . . . . . Bothacking | -11 -10 -10 -9 -9 -9 -8 -8 -7 -7 -6 ------------ Run | Yrd Mat Min Mat Min Exi Min Mat Fac Low Zio Used RIF Installer . | . . . . . . . . . . . Robots Hacked . | . . . . . . . . . . . Non-combat . | . . . . . . . . . . . Combat . | . . . . . . . . . . . Robot Hacks Applied . | . . . . . . . . . . . Relay Couplers Released . | . . . . . . . . . . . Fabnet Peak Effective % . | . . . . . . . . . . . Robots Rewired . | . . . . . . . . . . . Allies Hacked . | . . . . . . . . . . . Hacks Repelled . | . . . . . . . . . . . Allies | -11 -10 -10 -9 -9 -9 -8 -8 -7 -7 -6 -------- Run | Yrd Mat Min Mat Min Exi Min Mat Fac Low Zio Total Allies 5 | . . 1 . . . . . . . 4 Largest Group 4 | . . 1 1 . . . . . . 4 Highest-Rated Group 98 | . . 31 31 . . . . . . 98 Highest-Rated Ally 31 | . . 31 31 . . . . . . 31 Total Orders . | . . . . . . . . . . . Ally Attacks 14 | . . . 7 . . . . . . 7 Total Damage 85 | . . . 63 . . . . . . 22 Kills . | . . . . . . . . . . . Allies Corrupted . | . . . . . . . . . . . Allies Melted . | . . . . . . . . . . . Intel | -11 -10 -10 -9 -9 -9 -8 -8 -7 -7 -6 ------- Run | Yrd Mat Min Mat Min Exi Min Mat Fac Low Zio Active Infowar (turns) 1108 | 6 670 430 2 . . . . . . . Seismic 1108 | 6 670 430 2 . . . . . . . Robot Analysis Total . | . . . . . . . . . . . Derelict Logs Recovered 2 | . . 1 . 1 . . . . . . Drone Launches 3 | . . . . . . . . . . 3 Drone Recoveries 3 | . . . . . . . . . . 3 Exploration | -11 -10 -10 -9 -9 -9 -8 -8 -7 -7 -6 ------------- Run | Yrd Mat Min Mat Min Exi Min Mat Fac Low Zio Turns Passed 7694 | 96 670 430 603 537 344 785 567 1728 275 1659 Spaces Moved 4213 | 51 346 256 286 334 214 398 291 799 167 1071 Core 20 | 17 . . . . . . . 3 . . Treads 4052 | 34 346 256 286 334 214 398 291 655 167 1071 Legs 141 | . . . . . . . . 141 . . Wheels . | . . . . . . . . . . . Hover . | . . . . . . . . . . . Flight . | . . . . . . . . . . . Fastest Speed 50 | 50 160 160 160 160 160 160 160 120 145 145 Average Speed 155 | 123 160 160 160 160 160 160 160 160 147 145 Slowest Speed 900 | 160 160 160 160 160 160 160 160 900 148 145 Overloaded Moves . | . . . . . . . . . . . Propulsion Burnouts . | . . . . . . . . . . . Robots Hopped . | . . . . . . . . . . . Potential Cave-ins . | . . . . . . . . . . . Cave-ins Triggered . | . . . . . . . . . . . Exploration Rate (%) 45 | 4 38 57 28 71 59 95 30 15 24 83 Regions Visited 10 Branch Regions 6 Pre-discovered Areas 4 | . . . . . 1 . . . . 3 Known Exits Taken 3 | . 1 . 1 . . . . 1 . . Unknown Exits Taken 7 | 1 . 1 . 1 1 1 1 . 1 . Scrap Searched 8 | . . 1 . 1 . 2 . . 1 3 Spaces Dug 1 | . . . . . . . . 1 . . Terrain Destroyed 80 | . . 11 15 . . 14 26 14 . . Melee . | . . . . . . . . . . . Projectile 52 | . . . . . . 14 26 12 . . AOE 28 | . . 11 15 . . . . 2 . . Terrain Rammed . | . . . . . . . . . . . Walls Destroyed . | . . . . . . . . . . . Machines Disabled . | . . . . . . . . . . . Actions | -11 -10 -10 -9 -9 -9 -8 -8 -7 -7 -6 --------- Run | Yrd Mat Min Mat Min Exi Min Mat Fac Low Zio Total 4996 | 74 414 272 367 336 216 549 385 1075 180 1128 Wait 324 | . 19 9 20 . . 136 53 76 3 8 Move 4204 | 50 345 255 285 333 213 397 290 799 166 1071 Hop . | . . . . . . . . . . . Pick Up 110 | 11 13 2 13 1 . 6 15 46 1 2 Fast Attach 3 | . . . . . 1 . . 1 . 1 Attach 76 | 7 1 . 7 . . 3 5 41 . 12 Detach 4 | . . . . . 1 . 1 2 . . Swap 23 | 1 4 . 4 . . 1 4 8 1 . Drop 45 | . 7 . 5 . 1 6 11 11 1 3 Fire 197 | 5 25 1 33 . . . 6 88 8 31 Melee . | . . . . . . . . . . . Ram . | . . . . . . . . . . . Kick 1 | . . . . . . . . 1 . . Crush 9 | . . 5 . 2 . . . 2 . . Escape Stasis . | . . . . . . . . . . . Rewire . | . . . . . . . . . . . Trap . | . . . . . . . . . . . Miscellaneous . | . . . . . . . . . . . Route ------- -11/Scrapyard -10/Materials (discovered 2 exits: *Min x2) -10/Mines (discovered 2 exits: *Mat x2) -9/Materials (discovered 4 exits: *Min x2 / *Sto x2) -9/Mines (discovered 2 exits: *Mat / *Exi) -9/Exiles -8/Mines (discovered 2 exits: *Mat x2) -8/Materials -7/Factory (discovered 2 exits: *Low x2) -7/Lower Caves -6/Zion History --------- Turn | Location | Event 15 | -11/Scrapyard | Discovered new exit (range 16) 97 | -11/Scrapyard | Entered Materials 109 | -10/Materials | Identified exit to Mines 302 | -10/Materials | Build established: Mutant 767 | -10/Materials | Entered Mines 830 | -10/Mines | Learned Materials emergency access door positions 1029 | -10/Mines | Discovered new exit (range 14) 1048 | -10/Mines | Received a Mining Laser from a helpful Derelict 1060 | -10/Mines | Found the Drone Emporium 1072 | -10/Mines | Found Prototype Device 1191 | -10/Mines | Discovered new exit (range 5) 1197 | -10/Mines | Entered Materials 1197 | -9/Materials | Accompanied by 1 ally 1197 | -9/Materials | Evolved 2 slots: Propulsion x2 1344 | -9/Materials | Discovered new exit (range 2) 1436 | -9/Materials | Discovered new exit (range 5) 1581 | -9/Materials | Identified exit to Mines 1581 | -9/Materials | Identified exit to Storage 1629 | -9/Materials | Lost 4 parts (2n1u1w) 1800 | -9/Materials | Entered Mines 1841 | -9/Mines | Assembled infested the area 1883 | -9/Mines | Build established: Scavenger-Mutant 2012 | -9/Mines | Met a Derelict bent on vengeance 2020 | -9/Mines | Discovered new exit (range 15) 2186 | -9/Mines | Learned Materials stockpile data 2197 | -9/Mines | Found a damaged Exp. Sensor Array with a note attached 2200 | -9/Mines | Found Prototype Device 2331 | -9/Mines | Discovered new exit (range 5) 2337 | -9/Mines | Entered Exiles 2376 | -9/Exiles | Met 8R-AWN 2403 | -9/Exiles | Met EX-HEX 2453 | -9/Exiles | Met EX-BIN 2472 | -9/Exiles | Aligned with FarCom system 2473 | -9/Exiles | Given EX-Vault access code 2510 | -9/Exiles | Opened EX-Vault 2524 | -9/Exiles | Found AWS/Gauss 2558 | -9/Exiles | Warned to stay clear of 0b10 Research branches 2607 | -9/Exiles | Met EX-DEC 2615 | -9/Exiles | Learned location of Zion (-6) 2663 | -9/Exiles | Discovered new exit (range 14) 2681 | -9/Exiles | Left Exiles lab with AWS/Gauss 2681 | -9/Exiles | Entered Mines 2903 | -8/Mines | Identified Exp. Sensor Array 2960 | -8/Mines | Discovered new exit (range 6) 3460 | -8/Mines | Discovered new exit (range 4) 3466 | -8/Mines | Entered Materials 3466 | -8/Materials | Evolved 2 slots: Utility x2 3831 | -8/Materials | Discovered new exit (range 11) 4033 | -8/Materials | Entered Factory 4033 | -7/Factory | Evolved 2 slots: Propulsion x2 4443 | -7/Factory | AWS/Gauss suddenly broke down 4570 | -7/Factory | Lost 6 parts (1p3n2u) 4653 | -7/Factory | Repaired Hrd. Medium Armor Plating 4691 | -7/Factory | Repaired Imp. Power Shielding 4894 | -7/Factory | Identified exit to Lower Caves 5235 | -7/Factory | Cargo convoy interrupted 5311 | -7/Factory | Core integrity fell below 50% 5369 | -7/Factory | Lost 19 parts (3p8n4u4w) 5761 | -7/Factory | Entered Lower Caves 6014 | -7/Lower Caves | A Derelict revealed a hidden shortcut to a safe place 6036 | -7/Lower Caves | Entered Zion 6064 | -6/Zion | Given A8's code to call for help 6090 | -6/Zion | System corruption cleaned by Quarantine Array 6282 | -6/Zion | Given the Hacking Drone Bay 6319 | -6/Zion | Found Prototype Device 6319 | -6/Zion | Identified Hacking Drone Bay 6477 | -6/Zion | Gained Derelict followers 6575 | -6/Zion | Rebuked by Imprinter 6766 | -6/Zion | Acquired unknown access codes intercepted by a Zionite 6815 | -6/Zion | Learned location of Warlord (-4) 6879 | -6/Zion | Learned location of Extension (-5) 7587 | -6/Zion | Attempted to imprint without authorization 7587 | -6/Zion | Attacked by Zionites 7635 | -6/Zion | Identified Thief Drone Bay 7663 | -6/Zion | Core integrity fell below 20% 7672 | -6/Zion | System corruption reached 10% 7695 | -6/Zion | Destroyed by ZL-UGY(M) with Heavy Riot Gun Last Messages --------------- 07649_ Acquired 51 matter. 07649_ Critical hit (Burn: +37). 07652_ Acquired Adv. Treads. 07657_ Carbon-fiber Leg destroyed. 07659_ Lyr. Light Armor Plating destroyed. 07660_ Dropped Thief Drone Bay. 07663_ Critical hit (Burn: +37). 07665_ Adv. Treads destroyed. 07667_ Lgt. Nuclear Core destroyed. 07669_ System corrupted: Component data lost. 07671_ Adv. Treads destroyed. 07672_ Identified Mak. Leg. 07677_ System corrupted: Hpw. Shotgun jammed. 07683_ Hpw. Shotgun destroyed. 07686_ Adv. Treads destroyed. 07689_ Lgt. Deuterium Engine destroyed. 07689_ Destroyed Riot Gun. 07691_ Destroyed Particle Charger. 07692_ Mak. Leg destroyed. 07692_ Imp. Medium Armor Plating destroyed. Map ----- +----------------------------------------------------+ | ???#"""""""""" ###" """#?????" | | ???#############""" ""##???""""" " | | ???????????#####""# ""#???"" """""""" | | ??????????##"""#### #"#???" """""" | | ??????????#" #"#???? """"" | | ??????????#" #?"?????" "" | | ??????????#" #???????""" "" | | ??????????## #### #???????"""" "" | | ???????????# #??######????????#"" | | ???????##### #####????????????#"" | | ???????""""" """""???????????###" | | ?????######" "######?????????#""" | | ?????# " " " " #?????????#"" | | ?????# " """ #?????????##" | | ?????#"""" " " #???????##""" """" | | ?????#""""" """""#??????##""""""#""" | | ?????# """" """" #??????""" """""""" | | ?????#" "" "" ""#?????"#"" | | ?????#"" """ "" " #?????""" | | ?????#""" """M"""""" #?????#"" | | ?????#"""" ""M" " """#?????"#""""" | | ?????# " ""I #????????""""" | | ?????# """"" gMM""" #????????##""" | | ??????""""""" !* """#????????##""" | | ???????"" """ / #???????##""" | | ???????"""""" @" """#???????#""" | | ?????# " " " "#???????#"" | | ?????#################??????""" "" | | ????????????????????????????#"" "" | | ????????????????????????????#""" "" | | ????????????????????????????#"#""""" | | ????????????????????????????#?#"##""" | | ?????????????????????????????????##""" | | ??????????????????????????????????#"#""" | | ??????????????????????????????????###""" | | ????????????????????????????????????##"# | | ??????????????????????????????????????#? | | ???????????????????????????????????????? | | ???????????????????????????????????????? | | ???????????????????????????????????????? | | ???????????????????????????????????????? | | ???????????????????????????????????????? | | ???????????????????????????????????????? | | ???????????????????????????????????????? | | ???????????????????????????????????????? | | ???????????????????????????????????????? | | ???????????????????????????????????????? | | ???????????????????????????????????????? | | ???????????????????????????????????????? | | ???????????????????????????????????????? | +----------------------------------------------------+ Best States ------------- Heat Dissipation 48 Energy Generation 18 Energy Capacity 410 Matter Stores 300 Matter Capacity 300 Sight Range 16 Terrain Scan Density 10 Armor Coverage 675 Resistance: EX 25 Power Shielding 66 Propulsion Shielding 66 Evasion (%) 55 Armor Integrity Analysis 30 Recoil Reduction 6 Item Schematics ----------------- Lgt. Treads | -8/Materials | Scanalyzed Robot Schematics ------------------ None Fabricated ------------ Nothing Repaired ---------- Imp. Power Shielding | 28% | -7/Factory Studied --------- None Alien Tech Used ----------------- None Achievements -------------- Overkill Challenges ------------ None Game ------ Seed ShadingCombatChaincannon Manual? 0 Play Time 00:53:10 Cumulative 23.1 hours Start 2026.09.02 @ 12:46:09 End 2026.09.02 @ 13:37:30 Sessions 1 Manual Loads 0 Difficulty Rogue Special Mode None Game No. 44 Rogue 43 Adventurer 1 Explorer 0 Win Type - Total 0 Types 0/0/0/0/0/0/0/0/0/0 Lore% 28 Gallery% 26 Achievement% 23 Wizard Run 0 Options --------- Layout 0 ASCII 0 Keyboard 0 Movement Mouse Keybinds 0 Fullscreen 2 Font 18/SmallcapsGlow Map View 38x25 Zoom Use 96% Tactical HUD 1 Map Filters NONE Filters NONE Steam 1 RUN: 8534bb36-cdb0-4bb9-9e93-3764be0ffcb0